Cogmind - Beta 13 X2 --- EXPLORER MODE // 2024.01.01 @ 00:36:39 // Winter2022/Polymind Player: Minty Result: Destroyed by 09-JQY(R) with Subdweller Machine Gun Performance ------------- Evolutions (0) 0 Regions Visited (3) 600 Robots Destroyed (12) 60 Value Destroyed (313) 313 Prototype IDs (0) 0 Alien Tech Used (0) 0 Bonus (1572) 1572 TOTAL SCORE: 2115 Bonus ------- Polymind Skill 1445 Follower Combat Kills 150 Friendly Fire -23 Cogmind --------- Core Integrity 0/250 Matter 0/0 Energy 9/100 System Corruption 0% Temperature Cool (0) Movement Core (50) Location -10/Subcaves Parts ------- > --- POWER (2) -------- (None) > --- PROPULSION (3) --- (None) > --- UTILITY (4) ------ (None) > --- WEAPON (2) ------- (None) > --- INVENTORY (0) ---- (None) Peak State ------------ > --- POWER ------------ Light Angular Momentum Engine > --- PROPULSION ------- Carbon-fiber Leg Carbon-fiber Leg > --- UTILITY ---------- Improved Heat Sink Improved Heat Sink > --- WEAPON ----------- Beamcaster > --- INVENTORY -------- (None) [Rating: 22] Favorites ----------- Power Light Nuclear Core Engine Light Angular Momentum Engine Power Core Light Nuclear Core Propulsion Aluminum Leg Leg Aluminum Leg Wheel Wheel Utility Improved Heat Sink Device Improved Heat Sink Protection Scrap Shield Weapon Particle Gun Energy Gun Particle Gun Special Weapon Mining Laser Build | -11 -10 -10 -10 ------- Run | Yrd Mat Min Sub Slots Evolved . | . . . . Power . | . . . . Propulsion . | . . . . Utility . | . . . . Weapon . | . . . . Parts Attached . | . . . . Power . | . . . . Engine . | . . . . Core . | . . . . Reactor . | . . . . Propulsion . | . . . . Treads . | . . . . Leg . | . . . . Wheel . | . . . . Hover . | . . . . Flight . | . . . . Utility . | . . . . Device . | . . . . Storage . | . . . . Processor . | . . . . Hackware . | . . . . Protection . | . . . . Artifact . | . . . . Weapon . | . . . . Energy Gun . | . . . . Energy Cannon . | . . . . Ballistic Gun . | . . . . Ballistic Cannon . | . . . . Launcher . | . . . . Special Weapon . | . . . . Impact Weapon . | . . . . Slashing Weapon . | . . . . Piercing Weapon . | . . . . Special Melee Weapon . | . . . . Unidentified Prototypes . | . . . . Parts Lost 1 | . . . 1 Power 1 | . . . 1 Propulsion . | . . . . Utility . | . . . . Weapon . | . . . . Highest Loss Streak 1 | . . . 1 To Critical Strikes . | . . . . Average Slot Usage (%) 81 | . 66 100 74 Engine 8 | . . 11 7 Core 6 | . 13 5 5 Leg 20 | . 26 33 13 Wheel 6 | . . 1 9 Device 22 | . 13 29 19 Protection 2 | . . . 4 Energy Gun 12 | . 13 16 10 Special Weapon 1 | . . . 2 Naked Turns 116 | . 22 . 94 Heaviest Build 30 | . 9 16 30 Greatest Support 40 | 3 20 30 40 Greatest Overweight (x) 1 | . . . 1 Average Overweight (x) . | . . . . Largest Inventory Capacity 2 | . 1 1 2 Average Capacity . | . . . . Most Carried 2 | . . . 2 Average Carried . | . . . . Final Capacity 1 | . 1 . . Final Carried . | . . . . Class Distribution -------------------- 54% | Grunt 17% | Subdweller 11% | Cogmind 11% | Tunneler 5% | Samaritan Dominant Class ---------------- Grunt | -10/Materials Grunt | -10/Mines Grunt | -10/Subcaves Resources | -11 -10 -10 -10 ----------- Run | Yrd Mat Min Sub Matter Collected . | . . . . Remotely . | . . . . Salvage Created 338 | . 69 97 172 Parts 32 | . 4 14 14 Haulers Intercepted . | . . . . Recyclers Shooed . | . . . . Parts Field Recycled . | . . . . Retrieved Matter . | . . . . Parts Self-Destructed . | . . . . Prevented . | . . . . Kills | -11 -10 -10 -10 ------- Run | Yrd Mat Min Sub Combat Hostiles Destroyed 9 | . 3 2 4 Guns 9 | . 3 2 4 Classes Destroyed 8 | . 2 2 4 Worker 1 | . . 1 . Builder 1 | . . 1 . Tunneler 1 | . . . 1 Swarmer 2 | . 2 . . Grunt 3 | . 1 2 . Sentry 1 | . . . 1 Artisan 1 | . . . 1 Subdweller 3 | . . . 3 Best Kill Streak 3 | . 3 2 2 Combat Bots Only 3 | . 3 1 2 Max Kills in Single Turn 1 | . 1 1 1 Gunslinging . | . . . . Exploded . | . . . . Melee . | . . . . Uniques/NPCs Destroyed . | . . . . Combat | -11 -10 -10 -10 -------- Run | Yrd Mat Min Sub Hostile Shots Fired 99 | . 49 5 45 Missed 30 | . 17 2 11 Damage Taken 693 | . 170 27 496 Core 258 | . 61 8 189 Absorbed by Shields . | . . . . Ignored by Resistances 394 | . 119 17 258 Core Remaining (%) 100 | 100 . . . Volleys Fired 81 | . 19 11 51 Largest 1 | . 1 1 1 Hottest 100 | . 65 75 100 Shots Fired 81 | . 19 11 51 Gun 79 | . 19 11 49 Cannon . | . . . . Launcher . | . . . . Special 2 | . . . 2 Kinetic . | . . . . Thermal 81 | . 19 11 51 Explosive . | . . . . Electromagnetic . | . . . . Robot Hit Streak 19 | . 8 4 19 Robot Miss Streak 2 | . 2 1 1 Penetration Max . | . . . . Secondary Targets . | . . . . Shots Hit Robots 69 | . 14 9 46 Core Hits 14 | . 3 5 6 Critical Kills . | . . . . Critical Parts Destroyed . | . . . . Critical Strikes 6 | . . 2 4 Burn 6 | . . 2 4 Melee Attacks . | . . . . Impact . | . . . . Slashing . | . . . . Piercing . | . . . . Sneak Attacks . | . . . . Combat Hostiles . | . . . . Follow-up Attacks . | . . . . Damage Inflicted 899 | . 231 223 445 Guns 898 | . 230 223 445 Cannons . | . . . . Explosions . | . . . . Melee . | . . . . Ramming 1 | . 1 . . Kinetic . | . . . . Thermal 898 | . 230 223 445 Explosive . | . . . . Electromagnetic . | . . . . Impact . | . . . . Slashing . | . . . . Piercing . | . . . . Highest Corruption . | . . . . Average Corruption . | . . . . Corruption Purged . | . . . . Corruption Blocked . | . . . . Overload Shots . | . . . . Overflow Damage . | . . . . Projectiles . | . . . . Explosions . | . . . . Melee . | . . . . Knockbacks . | . . . . Impact . | . . . . Kinetic . | . . . . Secondary . | . . . . Self-Inflicted Damage . | . . . . Shots . | . . . . Rammed . | . . . . Targets Rammed 1 | . 1 . . Kicked 1 | . 1 . . Crushed . | . . . . Highest Temperature 99 | . 21 6 99 Average Temperature 16 | . 11 3 24 Received Heat Transfer 162 | . 63 27 72 Siege Activations . | . . . . Robots Corrupted . | . . . . Combat Hostiles . | . . . . Parts Fried . | . . . . Impact Corruptions . | . . . . Robots Melted . | . . . . Combat Hostiles . | . . . . Parts Melted 1 | . 1 . . Heat Transferred 2148 | . 518 518 1112 Parts Sabotaged . | . . . . Parts Stolen . | . . . . Parts Stripped . | . . . . Power Chain Reactions . | . . . . Missiles Intercepted . | . . . . Alert | -11 -10 -10 -10 ------- Run | Yrd Mat Min Sub Peak Influence 141 | . 78 141 . Initial 21 | . . 21 . Average 63 | . 38 72 . Maximum Alert Level . | . . . . Low Security (%) 100 | 100 100 100 . Level 1 . | . . . . Level 2 . | . . . . Level 3 . | . . . . Level 4 . | . . . . Level 5 . | . . . . High Security . | . . . . Max Security . | . . . . Squads Dispatched 1 | . . 1 . Investigation 1 | . . 1 . Extermination . | . . . . Reinforcement . | . . . . Assault . | . . . . Garrison . | . . . . Intercept . | . . . . Searches Triggered . | . . . . Construction Impeded . | . . . . Haulers Reinforced . | . . . . Active Scanning Responses . | . . . . Cargo Convoy Interrupts . | . . . . Stealth | -11 -10 -10 -10 --------- Run | Yrd Mat Min Sub Distress Signals . | . . . . Communications Jammed . | . . . . Distress Signals . | . . . . Times Spotted 22 | . 9 3 10 Peak Tracking Total 4 | . 4 2 3 Tactical Retreats 1 | . . . 1 Traps | -11 -10 -10 -10 ------- Run | Yrd Mat Min Sub Traps Triggered 1 | . . . 1 Indirectly . | . . . . Trap Hack Attempts . | . . . . Triggered . | . . . . Disarmed . | . . . . Reprogrammed . | . . . . Reused . | . . . . Traps Extracted . | . . . . Installed . | . . . . Triggered . | . . . . Machines | -11 -10 -10 -10 ---------- Run | Yrd Mat Min Sub Machines Disabled . | . . . . Max in Single Turn . | . . . . Machines Repaired . | . . . . Machines Dismantled . | . . . . Machines Sabotaged . | . . . . Overloaded Fab Kills . | . . . . Hacking | -11 -10 -10 -10 --------- Run | Yrd Mat Min Sub Machines Accessed 2 | . 1 1 . Terminals 1 | . 1 . . Fabricators . | . . . . Repair Stations . | . . . . Recycling Units . | . . . . Scanalyzers . | . . . . Garrison Access . | . . . . Total Hacks 6 | . 5 1 . Successful 6 | . 5 1 . Failed . | . . . . Catastrophic . | . . . . Database Lockouts . | . . . . Manual 2 | . 2 . . Terminals 5 | . 5 . . Fabricators . | . . . . Repair Stations . | . . . . Recycling Units . | . . . . Scanalyzers . | . . . . Garrison Access . | . . . . Terminal Hacks 5 | . 4 1 . Robot Analysis 1 | . 1 . . Open Door 1 | . . 1 . Surveillance Status 1 | . 1 . . Registered Components 1 | . 1 . . Zone Layout 1 | . 1 . . Fabricator Hacks . | . . . . Repair Station Hacks . | . . . . Recycling Unit Hacks . | . . . . Scanalyzer . | . . . . Garrison Access Hacks . | . . . . Unauthorized Hacks 1 | . 1 . . Terminals 1 | . 1 . . Botnet 1 | . 1 . . Fabricators . | . . . . Repair Stations . | . . . . Recycling Units . | . . . . Scanalyzers . | . . . . Garrison Access . | . . . . Data Cores Recovered . | . . . . Used . | . . . . Hacking Detections 1 | . 1 . . Full Trace Events . | . . . . Feedback Events . | . . . . Feedback Blocked . | . . . . Robot Schematics Acquired . | . . . . Robots Built . | . . . . Authchips . | . . . . Time . | . . . . Total Robot Build Rating . | . . . . Part Schematics Acquired . | . . . . Parts Built . | . . . . Authchips . | . . . . Time . | . . . . Total Part Build Rating . | . . . . Parts Repaired . | . . . . Time . | . . . . Parts Recycled . | . . . . Recycled Matter . | . . . . Retrieved Matter . | . . . . Retrieved Components . | . . . . Parts Scanalyzed . | . . . . Part Schematics Acquired . | . . . . Parts Damaged . | . . . . Bothacking | -11 -10 -10 -10 ------------ Run | Yrd Mat Min Sub Used RIF Installer . | . . . . Robots Hacked 1 | . 1 . . Non-combat . | . . . . Combat 1 | . 1 . . Robot Hacks Applied 1 | . 1 . . find_shortcuts 1 | . 1 . . Relay Couplers Released . | . . . . Fabnet Peak Effective % . | . . . . Robots Rewired . | . . . . Allies Hacked . | . . . . Hacks Repelled . | . . . . Allies | -11 -10 -10 -10 -------- Run | Yrd Mat Min Sub Total Allies 4 | . . 3 1 Largest Group 3 | . . 3 2 Highest-Rated Group 40 | . . 40 32 Highest-Rated Ally 16 | . . 16 16 Total Orders . | . . . . Ally Attacks 58 | . . 13 45 Total Damage 475 | . . 172 303 Kills 5 | . . 2 3 Allies Corrupted . | . . . . Allies Melted . | . . . . Intel | -11 -10 -10 -10 ------- Run | Yrd Mat Min Sub Robot Analysis Total 5 | . 2 2 1 Derelict Logs Recovered . | . . . . Drone Launches . | . . . . Drone Recoveries . | . . . . Exploration | -11 -10 -10 -10 ------------- Run | Yrd Mat Min Sub Turns Passed 974 | 7 83 302 582 Spaces Moved 783 | 13 62 195 513 Core 224 | 13 43 1 167 Treads . | . . . . Legs 319 | . 19 188 112 Wheels 240 | . . 6 234 Hover . | . . . . Flight . | . . . . Fastest Speed 50 | 50 50 50 50 Average Speed 94 | 50 71 118 89 Slowest Speed 140 | 50 120 120 140 Overloaded Moves . | . . . . Propulsion Burnouts . | . . . . Robots Hopped . | . . . . Cave-ins Triggered . | . . . . Exploration Rate (%) 28 | 2 25 43 43 Regions Visited 3 Branch Regions 2 Pre-discovered Areas 2 | . . 1 1 Known Exits Taken 3 | 1 1 1 . Unknown Exits Taken . | . . . . Scrap Searched 6 | . . . 6 Spaces Dug . | . . . . Terrain Destroyed . | . . . . Melee . | . . . . Projectile . | . . . . AOE . | . . . . Terrain Rammed . | . . . . Walls Destroyed . | . . . . Machines Disabled . | . . . . Actions | -11 -10 -10 -10 --------- Run | Yrd Mat Min Sub Total 925 | 12 81 254 578 Wait 55 | . . 46 9 Move 780 | 12 61 194 513 Hop . | . . . . Pick Up 2 | . . . 2 Fast Attach . | . . . . Attach . | . . . . Detach . | . . . . Swap . | . . . . Drop 2 | . . . 2 Fire 81 | . 19 11 51 Melee . | . . . . Ram . | . . . . Kick 1 | . 1 . . Crush . | . . . . Escape Stasis . | . . . . Rewire 1 | . . . 1 Trap . | . . . . Miscellaneous 3 | . . 3 . Route ------- -11/Scrapyard -10/Materials -10/Mines -10/Subcaves (discovered 1 exit: *Mat) History --------- Turn | Location | Event 1 | -11/Scrapyard | Identified exit to Materials 1 | -11/Scrapyard | Discovered exit to Materials (range 2) 8 | -11/Scrapyard | Entered Materials 73 | -10/Materials | Identified exit to Mines 73 | -10/Materials | Discovered exit to Mines (range 16) 91 | -10/Materials | Entered Mines 96 | -10/Mines | Assisted by bots powering up and referring to "LRC-V3" 106 | -10/Mines | Met a Derelict bent on vengeance 152 | -10/Mines | Received a Rocket Launcher from a helpful Derelict 168 | -10/Mines | Met a Derelict shopkeep closing up shop 203 | -10/Mines | Learned location of Storage (-8) 383 | -10/Mines | Identified exit to Subcaves 383 | -10/Mines | Discovered exit to Subcaves (range 3) 393 | -10/Mines | Entered Subcaves 393 | -10/Subcaves | Accompanied by 2 allies 394 | -10/Subcaves | Shifting Twisted Machinery released Sub. Monowheel 462 | -10/Subcaves | Disturbed a concealed Subdweller 592 | -10/Subcaves | Core integrity fell below 50% 657 | -10/Subcaves | Shifting Twisted Machinery released Multitool 659 | -10/Subcaves | Identified exit to Materials 659 | -10/Subcaves | Discovered exit to Materials (range 12) 751 | -10/Subcaves | A Subdweller sparked back to life 751 | -10/Subcaves | A Subdweller sparked back to life 751 | -10/Subcaves | A Subdweller sparked back to life 864 | -10/Subcaves | Shifting Twisted Machinery released Sub. Optics 864 | -10/Subcaves | Shifting Twisted Machinery released Flamer 897 | -10/Subcaves | Core integrity fell below 20% 911 | -10/Subcaves | Learned location of Zion (-7) 911 | -10/Subcaves | Met a Zionite searching for "candidates" 957 | -10/Subcaves | Disturbed a concealed Subdweller 975 | -10/Subcaves | Destroyed by 09-JQY(R) with Subdweller Machine Gun Last Messages --------------- 00896_ Spikes shoot up from the floor. 00896_ Critical hit (Impale). 00911_ M4-593(z): "Hey you! It's really dangerous down here, I feel that you could die at any moment. For your health and safety might I suggest a trip to Zion?" World map updated: -7/Zion. 00922_ Took control of M4-593(z). 00955_ Searching scrap... 00955_ Found Hvy. Battle Rifle. 00955_ Found 32 Matter. 00956_ Searching scrap... 00956_ Found Sub. Monowheel. 00956_ Found 19 Matter. 00957_ 09-JQY(R) angrily emerges from the Twisted Machinery. 00961_ 09-JQY(R) suffers critical hit (Burn). 00964_ 09-JQY(R) affixes Scrap Shield Fragment to Scrap Shield. 00965_ 09-JQY(R) suffers critical hit (Burn). 00968_ 09-JQY(R) affixes Scrap Shield Fragment to Scrap Shield. 00969_ 09-JQY(R) suffers critical hit (Burn). 00975_ Released control of M4-593(z). Map ----- +----------------------------------------------------+ | ?????????????????????###### # ? | | ???????????????????????## # ## ### ? | | ???????????????????????# ####??#?# #? | | ???????????????????????# ##??#??? # ? | | ??????????????????###### ## #???#?#? | | ??????????????????# #???????? | | ??????????????????# ##???????? | | ??????????????????## # ##????????? | | ???????????????????# #####????????? | | ???????????????????# # ###??????? | | ???????????????????# #??????? | | ???????????????????# #??????? | | ???????????????????## #### ###??????? | | ????????????????????## #???#????????? | | ???????????????????### #????????????? | | ?????????????????### ##????????????? | | ????????????????## #?????????????? | | ????????????????# # #?????????????? | | ????????????????# # ##????????????? | | ????????????????## ## #????????????? | | ????????????????# ## #????????????? | | ????????????????## # ##???????????? | | ???????????###?## # ##??????????? | | ??????????##$### #??????????? | | ??????????# # #< #??????????? | | ??????????##[@R ##??????????? | | ??????????#z=<##< #####???????????? | | ??????????##%## ###???????????????? | | ???????????#### #?????????????????? | | ??????????????# #?????????????????? | | ??????????????# ?????????????????? | | ??????????????##### #????????????????? | | ???????????????????##????????????????? | | ?????????????????????????????????????? | | ?????????????????????????????????????? | | ?????????????????????????????????????? | | ?????????????????????????????????????? | | ?????????????????????????????????????? | | ?????????????????????????????????????? | | ?????????????????????????????????????? | | ?????????????????????????????????????? | | ?????????????????????????????????????? | | ?????????????????????????????????????? | | ?????????????????????????????????????? | | ?????????????????????????????????????? | | ?????????????????????????????????????? | | ?????????????????????????????????????? | | ?????????????????????????????????????? | | ?????????????????????????????????????? | | ?????????????????????????????????????? | +----------------------------------------------------+ Best States ------------- Heat Dissipation 48 Coolant Potential 50 Energy Generation 23 Energy Capacity 150 Matter Stores 100 Matter Capacity 100 Sight Range 19 Terrain Scan Range 16 Terrain Scan Density 10 Armor Coverage 800 Resistance: KI 35 Resistance: TH 35 Resistance: EX 35 Resistance: EM 35 Resistance: I 35 Resistance: S 35 Resistance: P 35 Evasion (%) 55 Offensive Hacking 20 Item Schematics ----------------- None Robot Schematics ------------------ None Fabricated ------------ Nothing Alien Tech Used ----------------- None Achievements -------------- None Challenges ------------ None Polymind | -11 -10 -10 -10 ---------- Run | Yrd Mat Min Sub Hosts 6 | . 1 2 3 Combat Hostiles 2 | . 1 . 1 Allies 3 | . . 1 2 Unique Host Classes 4 | . 1 1 2 Average Host Suspicion 42 | . 100 54 26 Unsuspicious Activity 505 | . . 24 481 Returns to Shadow 1 | . . 1 . Fuzzy Dispatches . | . . . . Protomatter Created 244 | . . 50 194 Used 94 | . 30 19 45 Decayed 120 | . . 26 94 Highest Spend 33 | . 30 14 33 Top 5 Hosts by Kills: G-47 Trooper (-10/Materials: 3) 4E-1MG(R) (-10/Subcaves: 3) 7E-BJM(g) (-10/Mines: 2) Trooper 1a (-10/Subcaves: 1) Game ------ Seed PhasingBarrageCarapace Manual? 0 Play Time 00:06:49 Cumulative 556.4 hours Start 2024.01.01 @ 00:30:13 End 2024.01.01 @ 00:36:39 Sessions 1 Manual Loads 0 Difficulty Explorer Special Mode Winter2022/Polymind Game No. 436 Rogue 167 Adventurer 123 Explorer 146 Win Type - Total 24 Types 19/0/3/1/0/0/0/1/0 Lore% 75 Gallery% 89 Achievement% 74 Wizard Run 0 Options --------- ASCII 0 Keyboard 1 Movement Numpad Keybinds 0 Fullscreen 2 Font 18/X11Bold Map View 76x50 Zoom Use 17% Tactical HUD 1 Map Filters NONE Filters NONE Steam 1 RUN: 236d9a6e-aeba-4c50-901b-a8eea4921231